{"text_format":"1","workbook":"xlsx","n_sheets":1,"sheets":["ورقة1"],"not_rendered":{"charts":0,"images":0,"macros":1,"external_links":0,"defined_names":0,"comments":0,"pivot_tables":0},"unopened":[],"bounds":{"document_bytes":16777216,"sheet_cells":100000,"rows_first":2000,"rows_last":500,"rows_between":2000,"halvings":0,"cell_chars":16384,"cell_head_chars":4096},"cells_cut":0,"cells_raw":0,"read":"whole","date_system":"1900"}

{"sheet":"ورقة1","index":0,"n_rows":17,"n_cols":110,"rows_kept":17,"cut":false,"hidden":false,"merged":[[4,77,6,77],[4,78,6,78],[4,79,6,79],[4,80,6,80],[7,82,7,98],[7,102,7,105],[4,28,6,28],[4,29,6,29],[4,30,6,30],[4,55,6,55],[4,56,6,56],[4,57,6,57],[3,75,6,75],[3,76,6,76],[3,77,3,78],[3,79,3,80],[3,81,6,81],[4,5,6,5],[4,6,6,6],[4,7,6,7],[4,8,6,8],[4,21,6,21],[3,69,6,69],[3,70,6,70],[3,71,6,71],[3,72,6,72],[3,73,6,73],[3,74,6,74],[3,63,6,63],[3,64,6,64],[3,65,6,65],[3,66,6,66],[3,67,6,67],[3,68,6,68],[3,55,3,56],[3,57,3,58],[3,59,6,59],[3,60,6,60],[3,61,6,61],[3,62,6,62],[4,58,6,58],[3,43,6,43],[3,44,6,44],[3,45,6,45],[3,46,6,46],[3,47,6,47],[3,48,6,48],[3,37,6,37],[3,38,6,38],[3,39,6,39],[3,40,6,40],[3,41,6,41],[3,42,6,42],[3,31,6,31],[3,32,6,32],[3,33,6,33],[3,34,6,34],[3,35,6,35],[3,36,6,36],[3,21,3,22],[3,23,3,24],[3,25,6,25],[3,26,6,26],[3,27,3,28],[3,29,3,30],[4,22,6,22],[4,23,6,23],[4,24,6,24],[4,27,6,27],[1,64,2,67],[1,68,2,71],[1,72,2,75],[1,76,2,81],[2,82,6,109],[3,4,6,4],[3,5,3,6],[3,7,3,8],[3,9,6,9],[3,20,6,20],[1,44,2,47],[1,48,2,51],[1,52,6,52],[1,53,6,53],[1,54,2,59],[1,60,2,63],[3,49,6,49],[3,50,6,50],[3,51,6,51],[3,54,6,54],[1,4,2,9],[1,20,2,25],[1,26,2,31],[1,32,2,35],[1,36,2,39],[1,40,2,43]]}
[]
[null,null,null,null,"أحياء",null,null,null,null,null,null,null,null,null,null,null,null,null,null,null,"كيمياء",null,null,null,null,null,"فيزياء",null,null,null,null,null,"ميكانيكا",null,null,null,"تاريخ",null,null,null,"علم نفس واجتماع",null,null,null,"جغرافيا",null,null,null,"فلسفة ومنطق",null,null,null,"سلوك و مواظبة","المجموع الكلى","تكنولوجيا المعلومات والاتصالات",null,null,null,null,null,"تربية دينية",null,null,null,"مواطنة وحقوق الانسان",null,null,null,"نشاط تربوى",null,null,null,"تربية رياضية",null,null,null,"التربية المهنية"]
[null,null,null,null,null,null,null,null,null,null,null,null,null,null,null,null,null,null,null,null,null,null,null,null,null,null,null,null,null,null,null,null,null,null,null,null,null,null,null,null,null,null,null,null,null,null,null,null,null,null,null,null,null,null,null,null,null,null,null,null,null,null,null,null,null,null,null,null,null,null,null,null,null,null,null,null,null,null,null,null,null,null,"نتيجة الطالب النهائية"]
[null,null,null,null,"أعمال السنة","ترم أول",null,"ترم ثانى",null,"الدرجة الكلية",null,null,null,null,null,null,null,null,null,null,"أعمال السنة","ترم أول",null,"ترم ثانى",null,"الدرجة الكلية","أعمال السنة","ترم أول",null,"ترم ثانى",null,"الدرجة الكلية","أعمال السنة","ترم أول","ترم ثانى","الدرجة الكلية","أعمال السنة","ترم أول","ترم ثانى","الدرجة الكلية","أعمال السنة","ترم أول","ترم ثانى","الدرجة الكلية","أعمال السنة","ترم أول","ترم ثانى","الدرجة الكلية","أعمال السنة","ترم أول","ترم ثانى","الدرجة الكلية",null,null,"أعمال السنة","ترم أول",null,"ترم ثانى",null,"الدرجة الكلية","أعمال السنة","ترم أول","ترم ثانى","الدرجة الكلية","أعمال السنة","ترم أول","ترم ثانى","الدرجة الكلية","أعمال السنة","عملى ترم أول","عملى ترم ثانى","الدرجة الكلية","أعمال السنة","عملى ترم أول","عملى ترم ثانى","الدرجة الكلية","أعمال السنة","ترم أول",null,"ترم ثانى",null,"الدرجة الكلية"]
[null,null,null,null,null,"العملى","التحريرى","العملى","التحريرى",null,null,null,null,null,null,null,null,null,null,null,null,"العملى","التحريرى","العملى","التحريرى",null,null,"العملى","التحريرى","العملى","التحريرى",null,null,null,null,null,null,null,null,null,null,null,null,null,null,null,null,null,null,null,null,null,null,null,null,"العملى","التحريرى","العملى","التحريرى",null,null,null,null,null,null,null,null,null,null,null,null,null,null,null,null,null,null,"العملى","التحريرى","العملى","التحريرى"]
[]
[]
[null,null,null,null,4,2,6,2,6,20,null,null,null,null,null,null,null,null,null,null,4,2,6,2,6,20,4,2,6,2,6,20,4,8,8,20,4,8,8,20,4,8,8,20,4,8,8,20,4,8,8,20,5,260,4,3,5,3,5,20,4,8,8,20,4,8,8,20,4,8,8,20,4,8,8,20,4,3,5,3,5,20,"النتيجة",null,null,null,null,null,null,null,null,null,null,null,null,null,null,null,null,null,null,null,"النتيجة",null,null,null,"ترتيب الطالب","المجموع بالحروف","النسبة","التقدير"]
[null,null,null,null,"-"," -"," -",0.5,1.5,8,null,null,null,null,null,null,null,null,null,null,"-"," -"," -",0.5,1.5,8,"-"," -"," -",0.5,1.5,8,"-",null,2,8,"-",null,2,8,"-",null,2,8,"-",null,2,8,"-",null,2,8,"--",130,"-","-","-","-",1.25,8,"-","-",2,10,"-","-",2,8,"-","-",2,8,"-","-",2,8,"-","-","-","-",1.25,8,"عربي","انجليزى","فرنساوى","جبر","تفاضل","احياء","كيمياء","فيزياء","ميكانيكا","تاريخ","علم نفس","جغرافيا","فلسفة ومنطق","المجموع","تكنولوجيا المعلومات والاتصالات","التربية الدينية","المواطنة وحقوق الانسان","الانشطة التربوية","التربية الرياضية","التربية المهنية","النتيجة","النتيجة النهائية","النتيجة","النتيجة","النتيجة","النتيجة","النتيجة","النتيجة"]
[null,null,null,null,3,2,4,0.25,2,{"$f":"SUM(E10:I10)","v":11.25},{"$f":"RESULTA(H10)","v":"راسب في مادة أحياء لعدم حصوله علي ربع الدرجة في العملي"},null,null,null,null,null,null,null,null,null,3,1,4,1,5,{"$f":"SUM(U10:Y10)","v":14},2,1,4,1,5,{"$f":"SUM(AA10:AE10)","v":13},2,5,6,{"$f":"SUM(AG10:AI10)","v":13},null,null,null,null,null,null,null,null,null,null,null,null,null,null,null,null,5,{"$f":"BA10+AJ10+AF10+Z10+J10+D10+#REF!+#REF!+#REF!+#REF!","v":{"$error":"#REF!"}},3.5,3,3,2.5,2.5,{"$f":"BG10+BF10+BE10+BD10+BC10","v":14.5},3.5,7.3,3.5,{"$f":"BK10+BJ10+BI10","v":14.3},3,4,5,{"$f":"BO10+BN10+BM10","v":12},4,7,7,{"$f":"BS10+BR10+BQ10","v":18},4,8,7,{"$f":"BW10+BV10+BU10","v":19},4,3,4.5,3,3,{"$f":"CC10+CB10+CA10+BZ10+BY10","v":17.5},{"$f":"IF(#REF!=\"\",\"\",(IF(AND(#REF!<30,#REF!<6),\" في اللغة العربية ولعدم الحصول علي ربع الدرجة\",IF(AND(#REF!<30,#REF!=\"غ\"),\" في اللغة العربية ولغيابه في التحريري\",IF(#REF!=\"غ\",\" في اللغة العربية لغيابه في التحريري\",IF(#REF!<30,\" في اللغة العربية\",IF(#REF!<6,\" في اللغة العربية لعدم الحصول علي ربع الدرجة\",\"\")))))))","v":{"$error":"#REF!"}},{"$f":"IF(#REF!=\"\",\"\",(IF(AND(#REF!<20,#REF!<5),\" في اللغة الانجليزية ولعدم الحصول علي ربع الدرجة\",IF(AND(#REF!<20,#REF!=\"غ\"),\" في اللغة الانجليزية ولغيابه في التحريري\",IF(#REF!=\"غ\",\" في اللغة الانجليزية لغيابه في التحريري\",IF(#REF!<20,\" في اللغة الانجليزية\",IF(#REF!<5,\" في اللغة الانجليزية لعدم الحصول علي ربع الدرجة\",\"\")))))))","v":{"$error":"#REF!"}},{"$f":"IF(#REF!=\"\",\"\",(IF(AND(#REF!<12,#REF!<3),\" في اللغة الثانية ولعدم الحصول علي ربع الدرجة\",IF(AND(#REF!<12,#REF!=\"غ\"),\" في اللغة الثانية ولغيابه في التحريري\",IF(#REF!=\"غ\",\" في اللغة الثانية لغيابه في التحريري\",IF(#REF!<12,\" في اللغة الثانية\",IF(#REF!<3,\" في اللغة الثانية لعدم الحصول علي ربع الدرجة\",\"\")))))))","v":{"$error":"#REF!"}},{"$f":"IF(#REF!=\"\",\"\",(IF(AND(#REF!<8,#REF!<2),\" في الجبر ولعدم الحصول علي ربع الدرجة\",IF(AND(#REF!<8,#REF!=\"غ\"),\" في الجبر ولغيابه في التحريري\",IF(#REF!=\"غ\",\" في الجبر لغيابه في التحريري\",IF(#REF!<8,\" في الجبر\",IF(#REF!<2,\" في الجبر لعدم الحصول علي ربع الدرجة\",\"\")))))))","v":{"$error":"#REF!"}},{"$f":"IF(C10=\"\",\"\",(IF(AND(D10<8,C10<2),\" في التفاضل وحساب المثلثات ولعدم الحصول علي ربع الدرجة\",IF(AND(D10<8,C10=\"غ\"),\" في التفاضل وحساب المثلثات ولغيابه في التحريري\",IF(C10=\"غ\",\" في التفاضل وحساب المثلثات لغيابه في التحريري\",IF(D10<8,\" في التفاضل وحساب المثلثات\",IF(C10<2,\" في التفاضل وحساب المثلثات لعدم الحصول علي ربع الدرجة\",\"\")))))))","v":""},{"$f":"RESULTA(H10)","v":"راسب في مادة أحياء لعدم حصوله علي ربع الدرجة في العملي"},{"$f":"IF(Y10=\"\",\"\",(IF(AND(Z10<8,Y10<3),\" في الكيمياء ولعدم الحصول علي ربع الدرجة\",IF(AND(Z10<8,Y10=\"غ\"),\" في الكيمياء ولغيابه في التحريري\",IF(Y10=\"غ\",\" في الكيمياء لغيابه في التحريري\",IF(Z10<8,\" في الكيمياء\",IF(Y10<3,\" في الكيمياء لعدم الحصول علي ربع الدرجة\",\"\")))))))","v":""},{"$f":"IF(AE10=\"\",\"\",(IF(AND(AF10<8,AE10<3),\" في الفيزياء ولعدم الحصول علي ربع الدرجة\",IF(AND(AF10<8,AE10=\"غ\"),\" في الفيزياء ولغيابه في التحريري\",IF(AE10=\"غ\",\" في الفيزياء لغيابه في التحريري\",IF(AF10<8,\" في الفيزياء\",IF(AE10<3,\" في الفيزياء لعدم الحصول علي ربع الدرجة\",\"\")))))))","v":""},{"$f":"IF(AI10=\"\",\"\",(IF(AND(AJ10<8,AI10<4),\" في الميكانيكا ولعدم الحصول علي ربع الدرجة\",IF(AND(AJ10<8,AI10=\"غ\"),\" في الميكانيكا ولغيابه في التحريري\",IF(AI10=\"غ\",\" في الميكانيكا لغيابه في التحريري\",IF(AJ10<8,\" في الميكانيكا\",IF(AI10<4,\" في الميكانيكا لعدم الحصول علي ربع الدرجة\",\"\")))))))","v":""},null,null,null,null,{"$f":"IF(BB10<130,\" في المجموع كلي\",\"\")","v":{"$error":"#REF!"}},{"$f":"IF(BG10=\"\",\"\",(IF(AND(BH10<8,BG10<1.25),\" في تكنولوجيا الاتصالات والمعلومات ولعدم الحصول علي ربع الدرجة\",IF(AND(BH10<8,BG10=\"غ\"),\" في تكنولوجيا الاتصالات والمعلومات ولغيابه في التحريري\",IF(BG10=\"غ\",\" في تكنولوجيا الاتصالات والمعلومات لغيابه في التحريري\",IF(BH10<8,\" في تكنولوجيا الاتصالات والمعلومات\",IF(BG10<1.25,\" في تكنولوجيا الاتصالات والمعلومات لعدم الحصول علي ربع الدرجة\",\"\")))))))","v":""},{"$f":"IF(BK10=\"\",\"\",(IF(AND(BL10<10,BK10<2),\" في التربية الدينية ولعدم الحصول علي ربع الدرجة\",IF(AND(BL10<10,BK10=\"غ\"),\" في التربية الدينية ولغيابه في التحريري\",IF(BK10=\"غ\",\" في التربية الدينية لغيابه في التحريري\",IF(BL10<10,\" في التربية الدينية\",IF(BK10<2,\" في التربية الدينية لعدم الحصول علي ربع الدرجة\",\"\")))))))","v":""},{"$f":"IF(BO10=\"\",\"\",(IF(AND(BP10<8,BO10<2),\" في المواطنة وحقوق الانسان ولعدم الحصول علي ربع الدرجة\",IF(AND(BP10<8,BO10=\"غ\"),\" في المواطنة وحقوق الانسان ولغيابه في التحريري\",IF(BO10=\"غ\",\" في المواطنة وحقوق الانسان لغيابه في التحريري\",IF(BP10<8,\" في المواطنة وحقوق الانسان\",IF(BO10<2,\" في المواطنة وحقوق الانسان لعدم الحصول علي ربع الدرجة\",\"\")))))))","v":""},{"$f":"IF(BS10=\"\",\"\",(IF(AND(BT10<8,BS10<3),\" في الانشطة التربوية ولعدم الحصول علي ربع الدرجة\",IF(AND(BT10<8,BS10=\"غ\"),\" في الانشطة التربوية ولغيابه في التحريري\",IF(BS10=\"غ\",\" في الانشطة التربوية لغيابه في التحريري\",IF(BT10<8,\" في الانشطة التربوية\",IF(BS10<3,\" في الانشطة التربوية لعدم الحصول علي ربع الدرجة\",\"\")))))))","v":""},{"$f":"IF(BW10=\"\",\"\",(IF(AND(BX10<8,BW10<2),\" في التربية الرياضية ولعدم الحصول علي ربع الدرجة\",IF(AND(BX10<8,BW10=\"غ\"),\" في التربية الرياضية ولغيابه في التحريري\",IF(BW10=\"غ\",\" في التربية الرياضية لغيابه في التحريري\",IF(BX10<8,\" في التربية الرياضية\",IF(BW10<2,\" في التربية الرياضية لعدم الحصول علي ربع الدرجة\",\"\")))))))","v":""},{"$f":"IF(CC10=\"\",\"\",(IF(AND(CD10<8,CC10<1.25),\" في التربية المهنية ولعدم الحصول علي ربع الدرجة\",IF(AND(CD10<8,CC10=\"غ\"),\" في التربية المهنية ولغيابه في التحريري\",IF(CC10=\"غ\",\" في التربية المهنية لغيابه في التحريري\",IF(CD10<8,\" في التربية المهنية\",IF(CC10<1.25,\" في التربية المهنية لعدم الحصول علي ربع الدرجة\",\"\")))))))","v":""},{"$f":"AND(CE10=\"\",CF10=\"\",CG10=\"\",CH10=\"\",CI10=\"\",CJ10=\"\",CK10=\"\",CL10=\"\",CM10=\"\",CR10=\"\",CS10=\"\",CT10=\"\",CU10=\"\",CV10=\"\",CW10=\"\",CX10=\"\")","v":{"$error":"#REF!"}},{"$f":"IF(CY10=FALSE,\"راسب وله دور ثان\",\"ناجح ومنقول للصف الثالث الثانوي\")","v":{"$error":"#REF!"}},{"$f":"CE10&\",\"&CF10&\",\"&CG10&\",\"&CH10&\",\"&CI10&\",\"&CJ10&\",\"&CK10&\",\"&CL10&\",\"&CM10&\",\"&CR10&\",\"&CS10&\",\"&CT10&\",\"&CU10&\",\"&CV10&\",\"&CW10&\",\"&CX10","v":{"$error":"#REF!"}},{"$f":"IF(CY10=FALSE,\"راسب وله دور ثان\"&\" \"& DA10,\"ناجح ومنقول للصف الثالث الثانوي\")","v":{"$error":"#REF!"}},{"$f":"RANKING(BB10,$CE$5:$CE$10,FALSE)","v":{"$error":"#NAME?"}},{"$f":"ArbNum2Text(BB10,1,1,\"درجـة\",\"درجـات\",1,\"جزء\",\"أجزاء\",1)","v":{"$error":"#NAME?"}},{"$f":"BB10/260%","v":{"$error":"#REF!"}},{"$f":"IF(BB10>=221,\"ممتاز\",IF(BB10>=195,\"جيد جدا\",IF(BB10>=169,\"جيد\",IF(BB10>=130,\"مقبول\",IF(BB10<150,\"ضعيف\")))))","v":{"$error":"#REF!"}}]
[null,null,null,null,3.8,2,4,"غ",2,{"$f":"SUM(E11:I11)","v":11.8},{"$f":"RESULTA(H11)","v":"راسب في مادة أحياء بسبب غيابه في العملي"},null,null,null,null,null,null,null,null,null,4,1.6,4,1.6,5,{"$f":"SUM(U11:Y11)","v":16.2},2.7,1.6,4,1.6,4.5,{"$f":"SUM(AA11:AE11)","v":14.4},3.3,5.5,7,{"$f":"SUM(AG11:AI11)","v":15.8},null,null,null,null,null,null,null,null,null,null,null,null,null,null,null,null,5,{"$f":"BA11+AJ11+AF11+Z11+J11+D11+#REF!+#REF!+#REF!+#REF!","v":{"$error":"#REF!"}},3.5,3,2,2.5,3,14,3.5,7.8,5.5,16.8,3.4,6.5,7.5,17.399999999999999,4,7,7,18,4,8,7,19,4,3,3.5,3,3,16.5,{"$f":"IF(#REF!=\"\",\"\",(IF(AND(#REF!<30,#REF!<6),\" في اللغة العربية ولعدم الحصول علي ربع الدرجة\",IF(AND(#REF!<30,#REF!=\"غ\"),\" في اللغة العربية ولغيابه في التحريري\",IF(#REF!=\"غ\",\" في اللغة العربية لغيابه في التحريري\",IF(#REF!<30,\" في اللغة العربية\",IF(#REF!<6,\" في اللغة العربية لعدم الحصول علي ربع الدرجة\",\"\")))))))","v":{"$error":"#REF!"}},{"$f":"IF(#REF!=\"\",\"\",(IF(AND(#REF!<20,#REF!<5),\" في اللغة الانجليزية ولعدم الحصول علي ربع الدرجة\",IF(AND(#REF!<20,#REF!=\"غ\"),\" في اللغة الانجليزية ولغيابه في التحريري\",IF(#REF!=\"غ\",\" في اللغة الانجليزية لغيابه في التحريري\",IF(#REF!<20,\" في اللغة الانجليزية\",IF(#REF!<5,\" في اللغة الانجليزية لعدم الحصول علي ربع الدرجة\",\"\")))))))","v":{"$error":"#REF!"}},{"$f":"IF(#REF!=\"\",\"\",(IF(AND(#REF!<12,#REF!<3),\" في اللغة الثانية ولعدم الحصول علي ربع الدرجة\",IF(AND(#REF!<12,#REF!=\"غ\"),\" في اللغة الثانية ولغيابه في التحريري\",IF(#REF!=\"غ\",\" في اللغة الثانية لغيابه في التحريري\",IF(#REF!<12,\" في اللغة الثانية\",IF(#REF!<3,\" في اللغة الثانية لعدم الحصول علي ربع الدرجة\",\"\")))))))","v":{"$error":"#REF!"}},{"$f":"IF(#REF!=\"\",\"\",(IF(AND(#REF!<8,#REF!<2),\" في الجبر ولعدم الحصول علي ربع الدرجة\",IF(AND(#REF!<8,#REF!=\"غ\"),\" في الجبر ولغيابه في التحريري\",IF(#REF!=\"غ\",\" في الجبر لغيابه في التحريري\",IF(#REF!<8,\" في الجبر\",IF(#REF!<2,\" في الجبر لعدم الحصول علي ربع الدرجة\",\"\")))))))","v":{"$error":"#REF!"}},"",{"$f":"IF(I11=\"\",\"\",(IF(AND(J11<8,I11<3),\" في الاحياء ولعدم الحصول علي ربع الدرجة\",IF(AND(J11<8,I11=\"غ\"),\" في الاحياء ولغيابه في التحريري\",IF(I11=\"غ\",\" في الاحياء لغيابه في التحريري\",IF(J11<8,\" في الاحياء\",IF(I11<3,\" في الاحياء لعدم الحصول علي ربع الدرجة\",\"\")))))))","v":" في الاحياء لعدم الحصول علي ربع الدرجة"},{"$f":"IF(Y11=\"\",\"\",(IF(AND(Z11<8,Y11<3),\" في الكيمياء ولعدم الحصول علي ربع الدرجة\",IF(AND(Z11<8,Y11=\"غ\"),\" في الكيمياء ولغيابه في التحريري\",IF(Y11=\"غ\",\" في الكيمياء لغيابه في التحريري\",IF(Z11<8,\" في الكيمياء\",IF(Y11<3,\" في الكيمياء لعدم الحصول علي ربع الدرجة\",\"\")))))))","v":""},{"$f":"IF(AE11=\"\",\"\",(IF(AND(AF11<8,AE11<3),\" في الفيزياء ولعدم الحصول علي ربع الدرجة\",IF(AND(AF11<8,AE11=\"غ\"),\" في الفيزياء ولغيابه في التحريري\",IF(AE11=\"غ\",\" في الفيزياء لغيابه في التحريري\",IF(AF11<8,\" في الفيزياء\",IF(AE11<3,\" في الفيزياء لعدم الحصول علي ربع الدرجة\",\"\")))))))","v":""},{"$f":"IF(AI11=\"\",\"\",(IF(AND(AJ11<8,AI11<4),\" في الميكانيكا ولعدم الحصول علي ربع الدرجة\",IF(AND(AJ11<8,AI11=\"غ\"),\" في الميكانيكا ولغيابه في التحريري\",IF(AI11=\"غ\",\" في الميكانيكا لغيابه في التحريري\",IF(AJ11<8,\" في الميكانيكا\",IF(AI11<4,\" في الميكانيكا لعدم الحصول علي ربع الدرجة\",\"\")))))))","v":""},null,null,null,null,{"$error":"#REF!"},"","","","","","",{"$f":"AND(CE11=\"\",CF11=\"\",CG11=\"\",CH11=\"\",CI11=\"\",CJ11=\"\",CK11=\"\",CL11=\"\",CM11=\"\",CR11=\"\",CS11=\"\",CT11=\"\",CU11=\"\",CV11=\"\",CW11=\"\",CX11=\"\")","v":{"$error":"#REF!"}},{"$error":"#REF!"},{"$f":"CE11&\",\"&CF11&\",\"&CG11&\",\"&CH11&\",\"&CI11&\",\"&CJ11&\",\"&CK11&\",\"&CL11&\",\"&CM11&\",\"&CR11&\",\"&CS11&\",\"&CT11&\",\"&CU11&\",\"&CV11&\",\"&CW11&\",\"&CX11","v":{"$error":"#REF!"}},{"$error":"#REF!"},{"$error":"#NAME?"},{"$error":"#NAME?"},{"$error":"#REF!"},{"$error":"#REF!"}]
[null,null,null,null,4.5999999999999996,2,4,2,1,13.6,{"$f":"RESULTA(H12)","v":"راسب في مادة أحياء لعدم حصوله علي ربع الدرجة في التحريري"}]
[null,null,null,null,5.4,2,4,2,"غ",13.4,"راسب في مادة أحياء بسبب غيابه في التحريري"]
[null,null,null,null,6.2,2,4,0.25,"غ",12.45,"راسب في مادة أحياء بسبب غيابه في التحريري ولعدم حصوله علي ربع الدرجة في العملي"]
[null,null,null,null,7,2,4,"غ",1,14,"راسب في مادة أحياء بسبب غيابه في العملي ولعدم حصوله علي ربع الدرجة في التحريري"]
[null,null,null,null,7.8,2,4,2,2,7,"راسب في مادة أحياء لعدم حصوله علي ربع الدرجة في الكلية"]
[null,null,null,null,8.6,2,4,"غ","غ",7,"راسب في مادة أحياء بسبب غيابه في العملي وبسبب غيابه في التحريري ولعدم حصوله علي ربع الدرجة في الكلية"]